[Event "41st Arco Open 2019"]
[Site "Arco"]
[Date "2019.10.05"]
[Round "1"]
[White "Halkias, Stelios"]
[Black "Aimi, Luca"]
[Result "1-0"]
[ECO "D34"]
[WhiteElo "2530"]
[BlackElo "1921"]
[Annotator "ChessBase"]
[PlyCount "81"]
[EventDate "2019.10.04"]
[EventType "swiss"]
[EventCountry "ITA"]
[SourceTitle "playchess.com"]
[Source "ChessBase"]
[SourceQuality "1"]
[TimeControl "40/5400+30:1800+30"]

1. Nf3 {[%clk} Nf6 {[%clk} 2. c4 {[%clk} e6 {[%clk} 3. g3 {[%clk} d5 {[%clk} 4. Bg2 {[%clk} c5 5. cxd5 {[%clk} exd5 {[%clk} 6. d4 Nc6 {[%emt 0:52:00]} 7. O-O {[%clk} Be7 {[%clk} 8. dxc5 Bxc5 {[%clk} 9. Bg5 {[%clk} O-O {[%clk} 10. Nc3 {[%clk} d4 {[%clk} 11. Ne4 {[%clk} Be7 {[%clk} 12. Bxf6 {[%clk} Bxf6 {[%clk} 13. b4 {[%clk} d3 {[%clk} 14. Nxf6+ {[%clk} Qxf6 {[%clk} 15. Qxd3 Nxb4 {[%emt 0:00:00]} 16. Qd4 {[%clk} Qe7 {[%emt 0:00:00]} 17. Qb2 {[%clk} Nc6 {[%emt 0:05:30]} 18. Rfd1 {[%clk} Bg4 19. h3 {[%clk} Bxf3 {[%emt 0:11:00]} 20. Bxf3 {[%emt 1:13:00]} Rfd8 {[%emt 0:04:30]} 21. e3 {[%clk} Rxd1+ {[%emt 0:00:30]} 22. Rxd1 {[%clk} Nd8 {[%emt 0:07:30]} 23. Qb5 {[%clk} g6 {[%emt 0:00:00]} 24. Rd7 {[%emt 0:00:00]} Qf6 {[%emt 0:07:26]} 25. Kg2 {[%emt 0:17:43]} Rc8 {[%emt 0:02:17]} 26. h4 {[%emt 0:00:00]} h5 {[%emt 0:03:53]} 27. Qg5 {[%emt 0:00:00]} Qxg5 {[%emt 0:04:04]} 28. hxg5 {[%emt 0:00:00]} Ne6 29. Bxb7 {[%emt 0:00:00]} Rc2 {[%emt 0:01:41]} 30. Bd5 Nxg5 {[%emt 0:00:26]} 31. Rxa7 {[%emt 0:00:00]} Kg7 {[%emt 0:00:00]} 32. a4 {[%emt 0:00:00]} Kf6 {[%emt 0:02:48]} 33. a5 Ke5 {[%emt 0:00:30]} 34. Rd7 {[%emt 0:00:00]} Ne4 {[%emt 0:01:56]} 35. Bxe4 {[%emt 0:00:00]} Kxe4 {[%emt 0:00:07]} 36. Rxf7 {[%emt 0:00:00]} Ra2 {[%emt 0:00:11]} 37. Rf6 {[%emt 0:00:00]} g5 {[%emt 0:01:37]} 38. Rh6 h4 {[%emt 0:00:30]} 39. gxh4 {[%emt 0:00:00]} g4 {[%emt 0:00:00]} 40. Rg6 {[%emt 0:00:00]} g3 {[%emt 0:01:03]} 41. Kxg3 {[%emt 0:30:25]} 1-0

[Event "41st Arco Open 2019"]
[Site "Arco"]
[Date "2019.10.05"]
[Round "1"]
[White "Horvath, Jozsef"]
[Black "Ciola, Alberto"]
[Result "1-0"]
[ECO "A34"]
[WhiteElo "2450"]
[BlackElo "1896"]
[Annotator "ChessBase"]
[PlyCount "51"]
[EventDate "2019.10.04"]
[EventType "swiss"]
[EventCountry "ITA"]
[SourceTitle "playchess.com"]
[Source "ChessBase"]
[SourceQuality "1"]
[TimeControl "40/5400+30:1800+30"]

1. c4 {[%clk} Nf6 {[%clk} 2. Nf3 {[%clk} c5 {[%clk} 3. Nc3 {[%clk} Nc6 {[%clk} 4. e3 {[%clk} d5 5. cxd5 {[%clk} Nxd5 {[%clk} 6. Bb5 {[%clk} Ndb4 {[%clk} 7. d4 {[%clk} cxd4 {[%clk} 8. exd4 {[%clk} a6 {[%clk} 9. Bxc6+ {[%clk} Nxc6 10. d5 {[%clk} Nb8 {[%clk} 11. O-O {[%clk} g6 12. Re1 {[%clk} Bg7 {[%clk} 13. Bg5 {[%clk} f6 {[%clk} 14. Bf4 {[%clk} O-O {[%clk} 15. Nd4 {[%clk} Re8 {[%clk} 16. Qb3 {[%emt 0:45:00]} e5 {[%emt 0:40:00]} 17. dxe6 {[%emt 0:01:30]} Qxd4 {[%emt 0:01:30]} 18. e7+ {[%emt 0:00:30]} Kh8 19. Qf7 {[%emt 0:01:30]} Bd7 {[%emt 0:01:00]} 20. Bxb8 {[%emt 0:00:00]} Raxb8 {[%emt 0:00:30]} 21. Rad1 {[%emt 0:00:00]} Qg4 {[%emt 0:01:30]} 22. h3 {[%emt 0:00:30]} Qf5 {[%emt 0:05:30]} 23. Rd5 {[%emt 0:01:30]} Qc2 {[%emt 0:02:30]} 24. Rxd7 {[%emt 0:02:30]} h5 {[%emt 0:03:30]} 25. Qxe8+ {[%emt 0:00:30]} Rxe8 {[%emt 0:00:30]} 26. Rd8 {[%emt 0:00:30]} 1-0

[Event "41st Arco Open 2019"]
[Site "Arco"]
[Date "2019.10.05"]
[Round "1"]
[White "Molnar, Bela"]
[Black "Di Chiara, Mauro"]
[Result "1-0"]
[ECO "B78"]
[WhiteElo "2305"]
[BlackElo "1878"]
[Annotator "ChessBase"]
[PlyCount "59"]
[EventDate "2019.10.04"]
[EventType "swiss"]
[EventCountry "ITA"]
[SourceTitle "playchess.com"]
[Source "ChessBase"]
[SourceQuality "1"]
[TimeControl "40/5400+30:1800+30"]

1. e4 {[%clk} c5 {[%clk} 2. Nf3 {[%clk} Nc6 {[%clk} 3. Nc3 {[%clk} g6 {[%clk} 4. d4 {[%clk} cxd4 5. Nxd4 {[%clk} Bg7 {[%clk} 6. Be3 d6 {[%clk} 7. Qd2 {[%clk} Nf6 {[%clk} 8. f3 {[%clk} O-O {[%clk} 9. Bc4 {[%clk} Bd7 {[%clk} 10. h4 {[%clk} Rc8 {[%clk} 11. Bb3 {[%clk} h5 {[%clk} 12. O-O-O {[%clk} Ne5 {[%clk} 13. Bg5 {[%clk} Nc4 14. Qd3 {[%clk} Ne5 {[%clk} 15. Qd2 {[%clk} Nc4 16. Qe2 {[%clk} Na5 {[%clk} 17. Kb1 {[%clk} Nxb3 {[%clk} 18. axb3 {[%clk} Re8 {[%clk} 19. g4 {[%clk} Nxg4 {[%emt 0:51:30]} 20. fxg4 {[%clk} Bxg4 {[%emt 0:00:30]} 21. Qe3 {[%clk} Bxd1 {[%emt 0:00:30]} 22. Rxd1 Qd7 {[%emt 0:06:30]} 23. Nd5 {[%emt 0:45:30]} f6 {[%emt 0:04:30]} 24. Rg1 {[%emt 0:08:30]} fxg5 {[%emt 0:09:30]} 25. Qxg5 {[%emt 0:00:30]} e6 26. Nf6+ {[%emt 0:00:30]} Bxf6 {[%emt 0:04:00]} 27. Qxf6 {[%emt 0:23:30]} Re7 {[%emt 0:01:30]} 28. Nxe6 {[%emt 0:00:00]} Qxe6 {[%emt 0:04:30]} 29. Rxg6+ {[%emt 0:00:00]} Kh7 {[%emt 0:00:30]} 30. Rh6+ {[%emt 0:00:00]} 1-0

[Event "41st Arco Open 2019"]
[Site "Arco"]
[Date "2019.10.05"]
[Round "1"]
[White "Sedina, Elena"]
[Black "Wild, Helmut"]
[Result "1-0"]
[ECO "B10"]
[WhiteElo "2290"]
[BlackElo "1870"]
[Annotator "ChessBase"]
[PlyCount "29"]
[EventDate "2019.10.04"]
[EventType "swiss"]
[EventCountry "ITA"]
[SourceTitle "playchess.com"]
[Source "ChessBase"]
[SourceQuality "1"]
[TimeControl "40/5400+30:1800+30"]

1. e4 {[%clk} c6 {[%clk} 2. c4 {[%clk} d5 {[%clk} 3. exd5 {[%clk} cxd5 {[%clk} 4. cxd5 {[%clk} Nf6 {[%clk} 5. Nc3 {[%clk} a6 {[%clk} 6. Qa4+ {[%clk} Nbd7 {[%clk} 7. d4 {[%clk} Rb8 {[%clk} 8. Bf4 {[%clk} b5 {[%clk} 9. Qc2 {[%clk} Rb7 {[%clk} 10. Rc1 {[%emt 0:44:00]} Nb6 {[%clk} 11. Be2 {[%emt 0:24:30]} Nfxd5 12. Nxd5 {[%emt 0:00:30]} Nxd5 {[%clk} 13. Qxc8 {[%clk} Qxc8 {[%clk} 14. Rxc8+ {[%emt 0:02:00]} Kd7 {[%clk} 15. Rb8 {[%emt 0:00:30]} 1-0

[Event "41st Arco Open 2019"]
[Site "Arco"]
[Date "2019.10.05"]
[Round "1"]
[White "Bifulco, Michel"]
[Black "Tsiapouris, Michael"]
[Result "1-0"]
[ECO "D02"]
[WhiteElo "2276"]
[BlackElo "1862"]
[Annotator "ChessBase"]
[PlyCount "81"]
[EventDate "2019.10.04"]
[EventType "swiss"]
[EventCountry "ITA"]
[SourceTitle "playchess.com"]
[Source "ChessBase"]
[SourceQuality "1"]
[TimeControl "40/5400+30:1800+30"]

1. d4 {[%clk} d5 {[%clk} 2. Nf3 {[%clk} Nf6 {[%clk} 3. g3 {[%clk} Bg4 {[%clk} 4. Bg2 {[%clk} c6 5. h3 {[%clk} Bh5 {[%clk} 6. O-O {[%clk} e6 {[%clk} 7. c4 {[%clk} Be7 {[%clk} 8. Nc3 {[%clk} dxc4 {[%clk} 9. Ne5 {[%clk} O-O {[%clk} 10. Nxc4 {[%clk} Nbd7 {[%clk} 11. g4 {[%clk} Bg6 {[%clk} 12. e4 {[%clk} h6 {[%clk} 13. Bf4 {[%clk} Rc8 {[%emt 0:37:30]} 14. Nd6 {[%clk} Bxd6 {[%emt 0:03:30]} 15. Bxd6 {[%emt 0:40:30]} Re8 {[%emt 0:00:00]} 16. f4 {[%clk} Nb6 {[%emt 0:13:00]} 17. e5 {[%clk} Nc4 {[%emt 0:03:30]} 18. Bc5 {[%clk} Ne3 19. Qf3 {[%emt 0:37:00]} Nxf1 {[%emt 0:08:00]} 20. Bxf1 {[%emt 0:00:30]} b6 21. Bd6 {[%emt 0:00:30]} Qd7 {[%emt 0:15:26]} 22. Rd1 {[%emt 0:02:54]} Nd5 {[%emt 0:00:28]} 23. Ne4 {[%emt 0:03:23]} Bxe4 {[%emt 0:04:34]} 24. Qxe4 {[%emt 0:01:41]} f5 {[%emt 0:02:30]} 25. gxf5 {[%emt 0:02:07]} exf5 {[%emt 0:00:07]} 26. Qf3 {[%emt 0:00:00]} Re6 {[%emt 0:00:48]} 27. Bc4 {[%emt 0:01:18]} Rg6+ {[%emt 0:02:15]} 28. Kh2 {[%emt 0:02:36]} Qe6 {[%emt 0:00:51]} 29. b4 {[%emt 0:00:53]} b5 {[%emt 0:00:25]} 30. Bb3 {[%emt 0:00:02]} Kh8 {[%emt 0:02:01]} 31. Rc1 {[%emt 0:03:00]} Qd7 {[%emt 0:00:00]} 32. a3 {[%emt 0:00:03]} Qe6 {[%emt 0:00:00]} 33. Rc5 {[%emt 0:01:00]} a6 {[%emt 0:06:08]} 34. Qh1 {[%emt 0:06:53]} Qd7 {[%emt 0:00:00]} 35. Bxd5 {[%emt 0:00:00]} cxd5 {[%emt 0:00:00]} 36. Qxd5 {[%emt 0:00:00]} Re6 {[%emt 0:00:00]} 37. Rxc8+ Qxc8 {[%emt 0:05:38]} 38. Qc5 {[%emt 0:02:11]} Qxc5 39. Bxc5 {[%emt 0:01:37]} Kg8 {[%emt 0:01:36]} 40. d5 Re8 {[%emt 0:00:00]} 41. e6 1-0

[Event "41st Arco Open 2019"]
[Site "Arco"]
[Date "2019.10.05"]
[Round "1"]
[White "Fecker, Noah"]
[Black "Hilbenz, Guntram"]
[Result "1-0"]
[ECO "C41"]
[WhiteElo "2242"]
[BlackElo "1854"]
[Annotator "ChessBase"]
[PlyCount "61"]
[EventDate "2019.10.04"]
[EventType "swiss"]
[EventCountry "ITA"]
[SourceTitle "playchess.com"]
[Source "ChessBase"]
[SourceQuality "1"]
[TimeControl "40/5400+30:1800+30"]

1. e4 {[%clk} e5 {[%clk} 2. Nf3 {[%clk} d6 {[%clk} 3. d4 {[%clk} exd4 {[%clk} 4. Nxd4 {[%clk} Nf6 {[%clk} 5. Nc3 {[%clk} Be7 {[%clk} 6. g3 O-O {[%clk} 7. Bg2 {[%clk} Bg4 {[%clk} 8. Nde2 Nc6 {[%clk} 9. h3 {[%clk} Bd7 {[%clk} 10. O-O {[%clk} Re8 {[%clk} 11. g4 {[%clk} h6 {[%clk} 12. Ng3 {[%clk} Bf8 {[%clk} 13. f4 {[%clk} Nh7 {[%emt 0:44:30]} 14. Be3 {[%clk} Ne7 {[%emt 0:12:30]} 15. Qd2 {[%emt 1:07:30]} c6 {[%emt 0:10:30]} 16. f5 {[%emt 0:00:00]} b5 {[%emt 0:08:30]} 17. Nh5 f6 {[%emt 0:03:14]} 18. Rad1 {[%emt 0:00:00]} Qc7 {[%emt 0:00:00]} 19. h4 {[%emt 0:00:00]} b4 {[%emt 0:09:42]} 20. Ne2 c5 {[%emt 0:00:30]} 21. Nef4 {[%emt 0:04:00]} Bc6 {[%emt 0:03:48]} 22. Ne6 {[%emt 0:03:30]} Qb7 {[%emt 0:00:16]} 23. Ng3 {[%emt 0:01:30]} Nc8 {[%emt 0:00:00]} 24. g5 {[%emt 0:03:30]} hxg5 {[%emt 0:01:32]} 25. hxg5 {[%emt 0:15:39]} fxg5 {[%emt 0:00:37]} 26. Bxg5 {[%emt 0:00:00]} Be7 {[%clk} 27. Bxe7 {[%emt 0:00:00]} Qxe7 {[%emt 0:00:25]} 28. e5 {[%emt 0:00:00]} Bxg2 {[%emt 0:00:30]} 29. Qxg2 {[%emt 0:00:00]} Rb8 {[%emt 0:00:43]} 30. Nh5 {[%emt 0:00:00]} Rb7 {[%emt 0:01:58]} 31. Nhxg7 {[%emt 0:00:00]} 1-0

[Event "41st Arco Open 2019"]
[Site "Arco"]
[Date "2019.10.05"]
[Round "1"]
[White "Glienke, Manfred"]
[Black "Buchaeckert, Juergen"]
[Result "1/2-1/2"]
[ECO "D94"]
[WhiteElo "2238"]
[BlackElo "1847"]
[Annotator "ChessBase"]
[PlyCount "51"]
[EventDate "2019.10.04"]
[EventType "swiss"]
[EventCountry "ITA"]
[SourceTitle "playchess.com"]
[Source "ChessBase"]
[SourceQuality "1"]
[TimeControl "40/5400+30:1800+30"]

1. c4 {[%clk} Nf6 {[%clk} 2. Nc3 {[%clk} d5 {[%clk} 3. e3 {[%clk} g6 {[%clk} 4. Nf3 {[%clk} Bg7 5. d4 {[%clk} O-O {[%clk} 6. Bd2 {[%clk} c5 {[%clk} 7. dxc5 {[%clk} Na6 {[%clk} 8. cxd5 {[%clk} Nxc5 {[%clk} 9. Bc4 {[%clk} a6 {[%clk} 10. b4 {[%clk} Nce4 {[%clk} 11. Rc1 {[%emt 0:40:30]} Bg4 12. h3 {[%emt 0:06:30]} Nxd2 {[%clk} 13. Qxd2 {[%emt 0:01:30]} Bxf3 14. gxf3 {[%emt 0:00:00]} Rc8 {[%emt 0:43:00]} 15. Bb3 {[%emt 0:08:00]} Qd7 {[%emt 0:13:30]} 16. Ke2 {[%emt 0:00:30]} Rfd8 {[%emt 0:02:30]} 17. d6 {[%emt 0:21:42]} Qxd6 {[%emt 0:05:30]} 18. Qxd6 {[%emt 0:00:27]} Rxd6 19. Ne4 {[%emt 0:00:41]} Rdc6 {[%emt 0:06:00]} 20. Rxc6 {[%emt 0:00:00]} Rxc6 {[%emt 0:00:30]} 21. Ng5 {[%emt 0:00:40]} e6 {[%emt 0:01:30]} 22. Rd1 {[%emt 0:00:30]} h6 {[%emt 0:04:30]} 23. Rd8+ {[%emt 0:01:16]} Bf8 {[%emt 0:06:32]} 24. Ne4 {[%emt 0:01:46]} Nxe4 {[%emt 0:00:00]} 25. fxe4 {[%emt 0:00:00]} Rd6 {[%emt 0:00:00]} 26. Rxd6 {[%emt 0:00:00]} 1/2-1/2

[Event "41st Arco Open 2019"]
[Site "Arco"]
[Date "2019.10.05"]
[Round "1"]
[White "Schneider, Johannes"]
[Black "Horvath, Csaba"]
[Result "0-1"]
[ECO "D87"]
[WhiteElo "1974"]
[BlackElo "2503"]
[Annotator "ChessBase"]
[PlyCount "58"]
[EventDate "2019.10.04"]
[EventType "swiss"]
[EventCountry "ITA"]
[SourceTitle "playchess.com"]
[Source "ChessBase"]
[SourceQuality "1"]
[TimeControl "40/5400+30:1800+30"]

1. d4 {[%clk} g6 {[%clk} 2. c4 {[%clk} Nf6 {[%clk} 3. Nc3 {[%clk} d5 {[%clk} 4. cxd5 {[%clk} Nxd5 {[%clk} 5. e4 {[%clk} Nxc3 {[%clk} 6. bxc3 {[%clk} Bg7 {[%clk} 7. Bc4 {[%clk} c5 {[%clk} 8. Ne2 Nc6 {[%clk} 9. Be3 {[%clk} O-O {[%clk} 10. O-O {[%clk} Bd7 {[%clk} 11. Rb1 {[%clk} Rc8 12. Bb5 {[%clk} e6 {[%clk} 13. d5 Na5 {[%clk} 14. c4 {[%emt 0:57:00]} Bxb5 {[%clk} 15. Rxb5 b6 {[%clk} 16. Qc2 {[%emt 0:05:00]} Re8 {[%emt 0:40:00]} 17. Rd1 {[%emt 0:05:30]} exd5 {[%emt 0:06:30]} 18. Rxd5 {[%emt 0:02:30]} Qh4 19. Ng3 {[%emt 0:01:30]} f5 {[%emt 0:10:00]} 20. Bxc5 {[%emt 0:00:00]} Nc6 {[%clk} 21. Ba3 {[%emt 0:19:57]} Nd4 {[%emt 0:07:00]} 22. Qd2 {[%emt 0:00:38]} Nxb5 {[%emt 0:01:30]} 23. cxb5 {[%emt 0:00:10]} fxe4 {[%emt 0:00:30]} 24. Rd7 {[%emt 0:01:08]} Qf6 {[%emt 0:13:30]} 25. Qd5+ Kh8 {[%emt 0:01:30]} 26. h3 {[%emt 0:05:40]} e3 {[%emt 0:21:29]} 27. fxe3 {[%emt 0:03:26]} Rxe3 {[%emt 0:00:00]} 28. Bb2 {[%emt 0:00:00]} Qxb2 {[%emt 0:00:00]} 29. Rd8+ {[%emt 0:00:13]} Re8 {[%emt 0:00:00]} 0-1

[Event "41st Arco Open 2019"]
[Site "Arco"]
[Date "2019.10.05"]
[Round "1"]
[White "Lukacs, Anna Kata"]
[Black "Petrov, Nikita"]
[Result "0-1"]
[ECO "C56"]
[WhiteElo "1900"]
[BlackElo "2586"]
[Annotator "ChessBase"]
[PlyCount "56"]
[EventDate "2019.10.04"]
[EventType "swiss"]
[EventCountry "ITA"]
[SourceTitle "playchess.com"]
[Source "ChessBase"]
[SourceQuality "1"]
[TimeControl "40/5400+30:1800+30"]

1. e4 {[%clk} e5 {[%clk} 2. Bc4 {[%clk} Nf6 {[%clk} 3. d4 {[%clk} exd4 {[%clk} 4. Nf3 {[%clk} Nc6 {[%clk} 5. e5 {[%clk} Ne4 {[%clk} 6. Bd5 Nc5 {[%clk} 7. O-O {[%clk} Be7 {[%clk} 8. Nxd4 Nxe5 {[%clk} 9. f4 {[%emt 0:44:30]} Nc6 {[%clk} 10. Nf5 {[%emt 0:06:30]} Bf6 {[%emt 0:43:00]} 11. Re1+ {[%emt 0:09:30]} Ne6 12. Qg4 {[%emt 0:07:30]} O-O {[%emt 0:12:00]} 13. Nc3 {[%emt 0:00:00]} Ncd4 {[%emt 0:03:30]} 14. Be4 {[%emt 0:11:30]} Nxf5 {[%emt 0:04:30]} 15. Bxf5 {[%emt 0:01:56]} d5 {[%emt 0:00:30]} 16. Rd1 {[%emt 0:05:44]} c6 17. Rd3 {[%emt 0:04:46]} Nd4 {[%emt 0:05:00]} 18. Bxc8 {[%emt 0:00:00]} Qxc8 {[%emt 0:00:30]} 19. Qh5 {[%emt 0:02:05]} Qf5 {[%emt 0:00:30]} 20. Qxf5 {[%emt 0:01:11]} Nxf5 {[%emt 0:00:00]} 21. Ne2 {[%emt 0:01:36]} Rfe8 {[%emt 0:00:00]} 22. Kf2 {[%emt 0:01:07]} Re6 {[%emt 0:02:30]} 23. Bd2 Rae8 {[%emt 0:01:30]} 24. Re1 {[%emt 0:01:04]} Bxb2 {[%emt 0:26:37]} 25. Rb3 {[%emt 0:01:38]} Bf6 {[%emt 0:00:00]} 26. Rxb7 {[%emt 0:00:00]} Nd6 {[%emt 0:00:00]} 27. Rxa7 {[%emt 0:01:46]} Ne4+ {[%clk} 28. Ke3 {[%emt 0:00:37]} Nc3+ {[%clk} 0-1

[Event "41st Arco Open 2019"]
[Site "Arco"]
[Date "2019.10.05"]
[Round "1"]
[White "Grosse-Honebrink, Brigitte"]
[Black "Okhotnik, Vladimir"]
[Result "0-1"]
[ECO "A41"]
[WhiteElo "1893"]
[BlackElo "2363"]
[Annotator "ChessBase"]
[PlyCount "64"]
[EventDate "2019.10.04"]
[EventType "swiss"]
[EventCountry "ITA"]
[SourceTitle "playchess.com"]
[Source "ChessBase"]
[SourceQuality "1"]
[TimeControl "40/5400+30:1800+30"]

1. d4 {[%clk} g6 {[%clk} 2. Nf3 {[%clk} Bg7 {[%clk} 3. Bf4 {[%clk} d6 {[%clk} 4. e3 {[%clk} Nd7 5. Be2 {[%clk} e5 {[%clk} 6. Bg3 {[%clk} Ne7 {[%clk} 7. Nbd2 {[%clk} Nf5 {[%clk} 8. c3 {[%clk} O-O {[%clk} 9. e4 {[%clk} Nxg3 {[%clk} 10. hxg3 {[%clk} exd4 {[%clk} 11. cxd4 {[%clk} c5 12. Nb3 {[%clk} Re8 {[%clk} 13. dxc5 {[%clk} Nxc5 14. Nxc5 {[%clk} Qa5+ {[%clk} 15. Kf1 {[%clk} dxc5 {[%clk} 16. Qc2 {[%clk} h6 {[%clk} 17. a3 {[%emt 0:44:30]} Be6 {[%clk} 18. Nd2 {[%emt 0:04:30]} b5 {[%clk} 19. f4 {[%emt 0:01:30]} Rad8 {[%clk} 20. Nf3 {[%emt 0:07:30]} c4 {[%emt 1:05:00]} 21. Rd1 {[%emt 0:07:30]} Rxd1+ {[%clk} 22. Bxd1 {[%emt 0:00:30]} Rd8 {[%clk} 23. Be2 {[%emt 0:02:30]} Bg4 {[%clk} 24. e5 {[%clk} Bxf3 {[%clk} 25. gxf3 {[%emt 0:09:00]} Qd2 {[%clk} 26. Qb1 {[%emt 0:00:30]} Bf8 {[%clk} 27. e6 {[%emt 0:02:30]} f5 {[%emt 0:18:44]} 28. e7 {[%emt 0:03:44]} Bxe7 {[%clk} 29. Rxh6 Kg7 {[%clk} 30. Rh2 {[%emt 0:00:49]} Bf6 {[%clk} 31. Rg2 Rh8 {[%clk} 32. Qd1 {[%emt 0:05:34]} Bd4 {[%clk} 0-1

[Event "41st Arco Open 2019"]
[Site "Arco"]
[Date "2019.10.05"]
[Round "1"]
[White "Prelati, Maurizio"]
[Black "Qendro, Llambi"]
[Result "1/2-1/2"]
[ECO "B06"]
[WhiteElo "1884"]
[BlackElo "2312"]
[Annotator "ChessBase"]
[PlyCount "58"]
[EventDate "2019.10.04"]
[EventType "swiss"]
[EventCountry "ITA"]
[SourceTitle "playchess.com"]
[Source "ChessBase"]
[SourceQuality "1"]
[TimeControl "40/5400+30:1800+30"]

1. e4 {[%clk} g6 {[%clk} 2. d4 {[%clk} Bg7 {[%clk} 3. f4 {[%clk} c6 {[%clk} 4. Nf3 {[%clk} d5 5. e5 {[%clk} Nh6 {[%clk} 6. Be2 {[%clk} O-O {[%clk} 7. c3 {[%clk} Bg4 {[%clk} 8. Na3 {[%clk} e6 {[%clk} 9. O-O {[%clk} Nf5 {[%clk} 10. Nc2 {[%clk} Nd7 {[%clk} 11. b3 {[%clk} Qb6 {[%emt 0:36:30]} 12. Ne3 {[%clk} Bxf3 {[%emt 0:05:30]} 13. Rxf3 {[%clk} Nxe3 14. Bxe3 {[%clk} f6 {[%emt 0:08:00]} 15. Qd2 {[%emt 0:56:30]} Rf7 {[%emt 0:06:30]} 16. Raf1 {[%emt 0:00:00]} Raf8 {[%emt 0:00:30]} 17. g3 {[%emt 0:00:00]} Qc7 {[%emt 0:05:30]} 18. Kg2 {[%emt 0:00:00]} Bh6 {[%emt 0:00:00]} 19. c4 {[%emt 0:01:00]} fxe5 {[%emt 0:09:00]} 20. fxe5 {[%emt 0:00:30]} Rxf3 {[%emt 0:00:30]} 21. Rxf3 {[%emt 0:00:30]} Rxf3 {[%emt 0:00:30]} 22. Bxf3 Bxe3 {[%emt 0:04:30]} 23. Qxe3 {[%emt 0:04:00]} Qa5 {[%emt 0:00:00]} 24. Qf2 {[%emt 0:05:30]} Qd8 {[%emt 0:06:43]} 25. cxd5 {[%emt 0:15:51]} cxd5 {[%emt 0:00:08]} 26. Bg4 {[%emt 0:00:00]} Nf8 {[%emt 0:02:22]} 27. Qd2 {[%emt 0:00:00]} Qe7 {[%emt 0:01:23]} 28. h4 {[%emt 0:00:00]} Kg7 29. Qf2 {[%emt 0:00:00]} Qd8 {[%emt 0:00:00]} 1/2-1/2

[Event "41st Arco Open 2019"]
[Site "Arco"]
[Date "2019.10.05"]
[Round "1"]
[White "Blasco, Domenico"]
[Black "Dittmar, Peter"]
[Result "0-1"]
[ECO "A06"]
[WhiteElo "1873"]
[BlackElo "2259"]
[Annotator "ChessBase"]
[PlyCount "108"]
[EventDate "2019.10.04"]
[EventType "swiss"]
[EventCountry "ITA"]
[SourceTitle "playchess.com"]
[Source "ChessBase"]
[SourceQuality "1"]
[TimeControl "40/5400+30:1800+30"]

1. Nf3 {[%clk} d5 {[%clk} 2. b3 {[%clk} c6 {[%clk} 3. Bb2 {[%clk} Bg4 {[%clk} 4. Ne5 {[%clk} Bf5 {[%clk} 5. d3 {[%clk} f6 {[%clk} 6. Nf3 e5 {[%clk} 7. Nbd2 {[%clk} Nh6 {[%clk} 8. e4 {[%clk} Bg6 {[%clk} 9. g3 {[%clk} Bb4 {[%clk} 10. a3 Ba5 {[%clk} 11. b4 {[%clk} Bc7 {[%clk} 12. Bg2 {[%clk} O-O {[%clk} 13. O-O {[%clk} Nd7 14. c4 {[%emt 0:40:00]} d4 {[%clk} 15. c5 {[%emt 0:00:30]} Bf7 {[%clk} 16. Qc2 {[%emt 0:07:30]} Be6 {[%clk} 17. a4 {[%clk} Qe7 {[%clk} 18. Ba3 {[%emt 0:29:00]} Qf7 {[%clk} 19. Rab1 {[%emt 0:00:30]} a6 {[%clk} 20. Bc1 {[%emt 0:11:30]} Rfc8 21. Nb3 {[%emt 0:00:56]} Qh5 {[%clk} 22. Na5 {[%clk} Rab8 {[%clk} 23. Nc4 {[%emt 0:03:51]} Nf7 {[%emt 0:42:30]} 24. Ba3 {[%emt 0:03:11]} Bd8 {[%emt 0:03:30]} 25. Rb2 {[%emt 0:00:59]} Be7 {[%emt 0:01:30]} 26. Rfb1 {[%emt 0:00:20]} Nd8 {[%emt 0:01:30]} 27. Nd6 Bxd6 {[%emt 0:04:30]} 28. cxd6 {[%emt 0:01:05]} b5 {[%emt 0:46:00]} 29. Rc1 {[%emt 0:00:38]} Qf7 {[%clk} 30. axb5 {[%emt 0:00:00]} axb5 {[%emt 0:00:00]} 31. Nd2 {[%emt 0:01:53]} Qf8 {[%emt 0:00:00]} 32. Nb3 {[%emt 0:01:14]} Qxd6 {[%emt 0:00:00]} 33. Rbb1 {[%emt 0:00:43]} Ra8 {[%emt 0:00:00]} 34. Qb2 {[%emt 0:00:48]} Qe7 {[%clk} 35. Nc5 {[%emt 0:00:00]} Nxc5 {[%emt 0:00:00]} 36. Rxc5 {[%emt 0:00:40]} Ra6 37. Qc1 {[%emt 0:01:07]} Rca8 {[%emt 0:00:00]} 38. Bb2 {[%emt 0:00:24]} Qd6 {[%emt 0:00:00]} 39. Ra1 {[%emt 0:00:27]} Ba2 {[%emt 0:00:00]} 40. f4 h6 {[%emt 0:00:00]} 41. fxe5 {[%emt 0:31:06]} fxe5 42. Qd2 {[%emt 0:00:00]} Nb7 {[%emt 0:00:00]} 43. Rc2 {[%emt 0:00:00]} Bb3 {[%emt 0:01:00]} 44. Rxa6 {[%emt 0:00:00]} Rxa6 {[%emt 0:00:30]} 45. Rc1 {[%emt 0:00:00]} Ra2 {[%emt 0:01:30]} 46. Rf1 {[%emt 0:00:00]} Be6 {[%clk} 47. Rc1 {[%emt 0:00:00]} Kh7 {[%emt 0:09:00]} 48. h4 {[%emt 0:00:00]} Bg4 {[%clk} 49. Kh2 {[%emt 0:00:00]} c5 {[%emt 0:02:00]} 50. bxc5 Nxc5 {[%emt 0:00:00]} 51. Qb4 {[%emt 0:00:00]} Rxb2 {[%emt 0:21:33]} 52. Qa3 {[%emt 0:00:00]} b4 {[%emt 0:00:00]} 53. Qa7 {[%emt 0:00:03]} Bf3 {[%emt 0:00:00]} 54. Rxc5 {[%emt 0:00:09]} Rxg2+ {[%emt 0:00:00]} 0-1

[Event "41st Arco Open 2019"]
[Site "Arco"]
[Date "2019.10.05"]
[Round "1"]
[White "Hocevar, Nikola"]
[Black "Zwahr, Paul"]
[Result "0-1"]
[ECO "E66"]
[WhiteElo "1864"]
[BlackElo "2282"]
[Annotator "ChessBase"]
[PlyCount "42"]
[EventDate "2019.10.04"]
[EventType "swiss"]
[EventCountry "ITA"]
[SourceTitle "playchess.com"]
[Source "ChessBase"]
[SourceQuality "1"]
[TimeControl "40/5400+30:1800+30"]

1. d4 {[%clk} Nf6 {[%clk} 2. Nf3 {[%clk} g6 {[%clk} 3. g3 {[%clk} Bg7 {[%clk} 4. Bg2 {[%clk} O-O 5. O-O {[%clk} d6 {[%clk} 6. c4 {[%clk} Nc6 {[%clk} 7. Nc3 {[%clk} a6 {[%clk} 8. a3 {[%clk} Na5 {[%clk} 9. Nd2 {[%clk} c5 {[%clk} 10. d5 Qc7 {[%emt 0:39:00]} 11. Rb1 {[%emt 0:58:30]} Bd7 {[%emt 0:03:30]} 12. b3 {[%emt 0:01:30]} b5 {[%emt 0:01:30]} 13. Bb2 {[%emt 0:08:30]} Rab8 {[%emt 0:27:30]} 14. cxb5 {[%emt 0:03:30]} axb5 {[%emt 0:00:00]} 15. Qc2 {[%emt 0:07:23]} e6 {[%emt 0:00:00]} 16. dxe6 {[%emt 0:05:21]} fxe6 {[%emt 0:00:00]} 17. Rfc1 {[%emt 0:00:56]} d5 {[%emt 0:00:00]} 18. e3 {[%emt 0:06:28]} Qd6 {[%emt 0:20:58]} 19. b4 {[%emt 0:00:50]} cxb4 {[%emt 0:00:00]} 20. axb4 {[%emt 0:00:00]} Nc4 {[%emt 0:00:00]} 21. Ba1 {[%emt 0:03:37]} Na3 {[%emt 0:00:00]} 0-1